bitfinex-derivatives/quotes_SOLF0:USTF0_20240906
["timestamp","ask_amount","ask_price","bid_price","bid_amount"]
[1725657261326,8.18223565,122.65,122.61,4.0802]
[1725657261628,4.10323565,122.65,122.59,5.4696]
[1725657261830,32.92,122.69,122.59,5.4696]
[1725657262023,32.92,122.67,122.59,5.4696]
[1725657262226,36.92771247,122.67,122.59,5.4696]
[1725657262717,4.0794,122.64,122.61,4.0801]
[1725657263230,4.0794,122.64,122.6,4.0804]
[1725657264426,36.92771247,122.67,122.55,4.04363239]
[1725657264630,32.92,122.65,122.54,32.92]
[1725657264832,32.92,122.65,122.54,36.99837737]
[1725657265122,4.00771247,122.67,122.54,36.99837737]
[1725657265123,4.0799,122.62,122.54,36.99837737]
[1725657265327,32.92,122.67,122.54,36.99837737]
[1725657265525,36.9077921,122.67,122.54,36.99837737]
[1725657265727,36.9077921,122.67,122.58,4.081]
[1725657266523,36.9077921,122.67,122.57,4.0813]
[1725657266721,32.92,122.64,122.55,3.99276707]
[1725657266925,32.92,122.64,122.52,40.9299]
[1725657267127,32.92,122.64,122.57,4.0813]
[1725657267128,4.0805,122.6,122.57,4.0813]
[1725657267429,3.98990984,122.62,122.54,32.92]
[1725657267623,32.92,122.66,122.54,37.07154711]
[1725657268129,37.08583323,122.66,122.58,4.081]
[1725657269031,4.0803,122.61,122.58,4.081]
[1725657269327,4.16583323,122.66,122.56,32.92]
[1725657269519,4.0788,122.66,122.58,32.92]
[1725657269726,4.03978577,122.65,122.59,7.9518]
[1725657269925,5.0,122.7,122.59,7.9518]
[1725657270422,5.0,122.7,122.62,4.0796]
[1725657271022,32.92,122.68,122.61,4.0799]
[1725657271220,36.98631497,122.68,122.61,4.0799]
[1725657271728,36.98631497,122.68,122.6,4.0804]
[1725657271928,36.98631497,122.68,122.59,7.9518]
[1725657272127,32.92,122.66,122.59,5.3386]
[1725657272630,4.11380138,122.66,122.58,32.92]
[1725657272825,32.92,122.69,122.57,5.4211]
[1725657273124,32.92,122.67,122.57,5.4211]
[1725657273330,37.07174857,122.67,122.57,5.4211]
[1725657273522,37.07174857,122.67,122.6,4.0803]
[1725657274227,5.0,122.7,122.6,4.0803]
[1725657274228,5.0,122.7,122.6,32.92]
[1725657274526,5.0,122.7,122.64,32.92]
[1725657274734,5.0,122.7,122.65,12.08324188]
[1725657275129,5.0,122.7,122.68,4.0778]
[1725657275323,5.0,122.7,122.65,12.08324188]
[1725657275836,5.0,122.7,122.68,4.0776]
[1725657276035,5.0,122.7,122.65,12.08324188]
[1725657276532,3.99023539,122.75,122.66,32.92]
[1725657276832,35.7222,122.8,122.69,32.92]
[1725657277127,4.0754,122.76,122.69,32.92]
[1725657277525,4.075,122.77,122.72,4.0763]
[1725657277727,8.1429,122.88,122.71,32.92]
[1725657278032,32.92,122.83,122.72,2.6705]
[1725657278233,4.0744,122.79,122.74,4.0756]
[1725657278433,8.1864101,122.79,122.72,2.6705]
[1725657278633,4.0739,122.8,122.76,4.0751]
[1725657278929,32.92,122.83,122.76,4.0751]
[1725657279131,4.08387358,122.88,122.76,32.92]
[1725657279332,32.92,122.88,122.76,32.92]
[1725657279530,37.02266378,122.88,122.76,32.92]
[1725657279837,32.92,122.84,122.72,35.5905]
[1725657280530,32.92,122.82,122.72,35.5905]
[1725657280929,32.92,122.82,122.72,2.6705]
[1725657281435,32.92,122.82,122.74,4.0756]
[1725657281630,32.92,122.82,122.72,2.6705]
[1725657282039,4.0748,122.78,122.74,4.0758]
[1725657283338,4.0749,122.77,122.74,4.0758]
[1725657283534,4.04373834,122.79,122.74,4.0758]
[1725657283741,32.92,122.82,122.74,4.0758]
[1725657283940,4.074,122.8,122.75,4.0754]
[1725657284129,4.06942193,122.79,122.75,4.0754]
[1725657284640,4.06942193,122.79,122.72,35.5905]
[1725657284937,32.92,122.87,122.76,32.92]
[1725657285141,36.5234,122.9,122.78,32.92]
[1725657285345,40.51072581,122.9,122.79,2.6265]
[1725657285537,4.0719,122.86,122.79,2.6265]
[1725657285739,40.51072581,122.9,122.79,6.61871473]
[1725657286134,4.0718,122.87,122.82,4.073]
[1725657286339,40.51072581,122.9,122.79,6.61871473]
[1725657287139,2.8022,122.9,122.86,4.0716]
[1725657287334,4.03743729,122.89,122.81,32.92]
[1725657287537,35.7222,122.9,122.81,32.92]
[1725657287736,35.7222,122.9,122.83,4.0726]
[1725657287931,32.92,122.88,122.79,2.6265]
[1725657288333,4.0716,122.87,122.82,4.073]
[1725657288540,0.7956,122.89,122.82,4.073]
[1725657288849,4.073,122.83,122.79,6.7006]
[1725657289039,32.92,122.87,122.79,2.6265]
[1725657289432,0.7956,122.89,122.79,2.6265]
[1725657289941,39.69934055,122.9,122.79,2.6265]
[1725657289942,6.77934055,122.9,122.8,32.92]
[1725657290151,32.92,122.93,122.82,32.92]
[1725657290339,3.97446629,122.92,122.82,32.92]
[1725657290537,32.92,122.95,122.82,32.92]
[1725657290538,4.0703,122.91,122.87,4.0713]
[1725657290843,4.1451264,122.91,122.82,32.92]
[1725657291042,32.92,122.92,122.8,32.92]
[1725657291234,37.00280898,122.92,122.8,32.92]
[1725657291431,4.0715,122.87,122.83,4.0727]
[1725657291638,37.00280898,122.92,122.8,32.92]
[1725657291839,32.92,122.9,122.8,32.92]
[1725657292235,36.98911209,122.9,122.8,32.92]
[1725657293236,36.98911209,122.9,122.79,2.6265]
[1725657293741,4.0716,122.87,122.83,4.0727]
[1725657294143,36.98911209,122.9,122.8,32.92]
[1725657294342,36.98911209,122.9,122.83,4.0729]
[1725657294742,36.98911209,122.9,122.84,4.0725]
[1725657295545,36.98911209,122.9,122.79,2.6265]
[1725657295745,3.5526,122.89,122.79,2.6265]
[1725657295941,4.0721,122.86,122.82,4.0729]
[1725657296147,3.5526,122.89,122.79,2.6265]
[1725657296346,3.5526,122.89,122.8,32.92]
[1725657296546,4.0716,122.87,122.83,4.0726]
[1725657297339,4.0716,122.87,122.8,32.92]
[1725657297340,4.06911209,122.9,122.8,32.92]
[1725657297651,32.92,122.92,122.8,32.92]
[1725657297849,4.0718,122.87,122.83,4.0727]
[1725657298556,32.92,122.9,122.79,2.6265]
[1725657298847,32.92,122.9,122.81,32.92]
[1725657299352,4.0714,122.88,122.81,32.92]
[1725657299952,4.0714,122.88,122.81,27.36]
[1725657300152,27.36,122.91,122.81,27.36]
[1725657300351,4.16271757,122.92,122.85,27.36]
[1725657300544,4.16271757,122.92,122.8,27.36]
[1725657300545,8.09687448,122.94,122.87,27.36]
[1725657300745,27.36,122.91,122.78,6.82300581]
[1725657300948,27.36,122.91,122.8,27.36]
[1725657301148,4.0722,122.85,122.79,5.3368]
[1725657301358,4.07418003,122.86,122.79,5.3368]
[1725657301545,27.36,122.85,122.76,4.0751]
[1725657301749,27.36,122.85,122.74,32.7241]
[1725657301947,36.93580938,122.86,122.75,32.86]
[1725657302147,32.86,122.86,122.75,32.86]
[1725657302354,4.0734,122.82,122.78,4.0743]
[1725657302654,235.1358,122.99,122.77,32.86]
[1725657302850,35.4387,122.93,122.82,32.86]
[1725657303051,35.4387,122.93,122.77,32.86]
[1725657303052,32.86,122.89,122.77,32.86]
[1725657303357,32.86,122.89,122.75,36.85149071]
[1725657303358,32.86,122.87,122.75,3.99149071]
[1725657303546,2.5787,122.86,122.74,5.3641]
[1725657303748,32.86,122.83,122.75,4.14016855]
[1725657304051,32.86,122.83,122.74,5.3641]
[1725657304248,32.86,122.83,122.74,9.4397]
[1725657304453,32.86,122.83,122.74,2.7434]
[1725657304651,32.86,122.76,122.68,2.6092]
[1725657305358,4.0040303,122.76,122.63,2.5652]
[1725657305560,32.86,122.71,122.63,2.5652]
[1725657305849,4.0783,122.67,122.63,2.5652]
[1725657306051,2.7058,122.7,122.63,2.5652]
[1725657306660,32.86,122.68,122.56,2.6092]
[1725657306858,5.51,122.7,122.59,32.86]
[1725657307657,5.51,122.7,122.57,2.5652]
[1725657307658,2.7058,122.7,122.61,32.86]
[1725657307853,2.7058,122.7,122.62,6.59996049]
[1725657308053,32.86,122.74,122.62,6.59996049]
[1725657308354,32.86,122.74,122.63,2.6254]
[1725657308565,32.86,122.7,122.59,32.86]
[1725657309065,32.86,122.72,122.61,32.86]
[1725657309265,4.0776,122.69,122.63,4.0794]
[1725657309464,37.0131805,122.74,122.63,32.86]
[1725657309657,37.0131805,122.74,122.64,2.8242]
[1725657309854,32.86,122.72,122.64,2.8242]
[1725657310263,32.86,122.7,122.59,36.99931073]
[1725657310461,2.584,122.69,122.6,2.7939]
[1725657310657,2.584,122.69,122.6,6.97237243]
[1725657310965,4.0792,122.64,122.6,2.7939]
[1725657311262,5.2807,122.69,122.6,2.7939]
[1725657311464,36.96871564,122.72,122.61,32.86]
[1725657311669,3.99237196,122.73,122.63,32.86]
[1725657311863,4.0774,122.7,122.65,4.0788]
[1725657312059,32.86,122.74,122.63,32.86]
[1725657312060,36.93070176,122.74,122.63,32.86]
[1725657313067,4.0778,122.69,122.64,4.0791]
[1725657313965,4.0779,122.68,122.63,36.9394]
[1725657314266,4.0779,122.68,122.61,32.86]
[1725657314453,36.93070176,122.74,122.63,32.86]
[1725657314658,32.86,122.76,122.65,32.86]
[1725657314856,9.31206151,122.77,122.66,5.1651]
[1725657315162,9.31206151,122.77,122.67,35.5826]
[1725657315358,9.31206151,122.77,122.67,39.56827574]
[1725657315561,9.31206151,122.77,122.67,2.7226]
[1725657315562,4.0771,122.71,122.67,2.7226]
[1725657315773,32.86,122.76,122.67,2.7226]
[1725657315961,32.86,122.76,122.59,4.09844356]
[1725657315962,32.86,122.74,122.61,32.86]
[1725657316269,32.86,122.74,122.67,4.0781]
[1725657316465,32.86,122.76,122.63,32.86]
[1725657316863,9.31206151,122.77,122.62,2.5571]
[1725657316864,32.86,122.74,122.62,2.5571]
[1725657317063,32.86,122.71,122.62,2.5571]
[1725657317269,32.86,122.71,122.62,6.6368]
[1725657317464,2.6277,122.7,122.62,2.5571]
[1725657317665,2.6277,122.7,122.6,5.3306]
[1725657317866,4.0776,122.69,122.61,2.5959]
[1725657318366,4.0779,122.68,122.64,4.0791]
[1725657318560,2.6277,122.7,122.61,2.5959]
[1725657318758,6.705,122.7,122.61,2.5959]
[1725657318975,32.86,122.74,122.63,32.86]
[1725657320168,4.0781,122.68,122.63,32.86]
[1725657320371,4.0781,122.68,122.64,4.0789]
[1725657320670,4.11016068,122.69,122.61,35.4559]
[1725657320862,32.86,122.7,122.61,2.5959]
[1725657321064,2.6428,122.69,122.61,2.5959]
[1725657321265,2.6428,122.69,122.6,5.3306]
[1725657321266,32.86,122.68,122.6,5.3306]
[1725657321468,2.6428,122.69,122.6,38.1906]
[1725657321670,32.86,122.75,122.62,32.86]
[1725657321862,35.5028,122.75,122.63,2.664]
[1725657322673,35.5028,122.75,122.66,4.0784]
[1725657323271,35.5028,122.75,122.65,4.0787]
[1725657323470,32.86,122.7,122.6,38.1906]
[1725657323674,4.0791,122.65,122.6,9.4109]
[1725657323965,4.0791,122.65,122.6,5.3306]
[1725657324268,32.86,122.68,122.6,9.411]
[1725657324475,35.5722,122.68,122.6,5.3306]
[1725657325472,35.5722,122.68,122.61,4.0801]
[1725657326167,35.5722,122.68,122.6,5.3306]
[1725657326772,4.079,122.65,122.61,4.08]
[1725657327573,35.5722,122.68,122.6,5.3306]
[1725657327771,35.5722,122.68,122.51,8.1669]
[1725657327971,4.079,122.65,122.61,4.0801]
[1725657328169,2.7122,122.68,122.6,36.84951618]
[1725657328471,9.18072313,122.7,122.6,32.86]
[1725657328675,9.18072313,122.7,122.62,32.86]
[1725657328676,5.0,122.7,122.62,32.86]
[1725657328879,5.0,122.7,122.48,28.55457471]
[1725657328880,5.0,122.7,122.64,32.86]
[1725657329075,5.0,122.7,122.67,4.0779]
[1725657329373,5.0,122.7,122.64,32.86]
[1725657329573,9.0774,122.7,122.65,4.0788]
[1725657329774,9.0774,122.7,122.63,8.0083]
[1725657329775,5.0,122.7,122.63,12.07655395]
[1725657329974,5.0,122.7,122.63,44.93655395]
[1725657330171,9.15882278,122.7,122.63,40.8683]
[1725657330375,9.15882278,122.7,122.63,8.0083]
[1725657330570,9.15882278,122.7,122.55,41.024]
[1725657330571,42.01882278,122.7,122.59,32.86]
[1725657330880,42.01882278,122.7,122.6,2.6579]
[1725657331377,42.01882278,122.7,122.61,4.0799]
[1725657332172,4.0789,122.65,122.61,4.0799]
[1725657334480,32.86,122.67,122.6,2.6579]
[1725657334676,9.15882278,122.7,122.6,2.6579]
[1725657334892,32.86,122.69,122.6,2.6579]
[1725657335579,5.0,122.7,122.61,32.86]
[1725657335972,5.0,122.7,122.6,2.6579]
[1725657335973,9.0773,122.7,122.65,4.0785]
[1725657336274,9.0773,122.7,122.63,32.86]
[1725657336471,5.0,122.7,122.68,4.0776]
[1725657336680,5.0,122.7,122.66,32.86]
[1725657337171,5.0,122.7,122.69,4.0775]
[1725657338072,4.08828456,122.77,122.68,32.86]
[1725657338278,4.0751,122.77,122.68,32.86]
[1725657338477,4.17066196,122.77,122.68,32.86]
[1725657338678,32.86,122.8,122.7,32.86]
[1725657338877,4.0748,122.78,122.71,2.6709]
[1725657339076,4.0748,122.78,122.73,4.076]
[1725657339875,4.16495264,122.77,122.71,2.6709]
[1725657340077,32.86,122.8,122.67,35.5875]
[1725657340272,32.86,122.8,122.67,38.2584]
[1725657340478,32.86,122.76,122.67,5.3984]
[1725657340786,2.7233,122.75,122.67,5.3984]
[1725657340985,4.0765,122.72,122.67,9.4764]
[1725657341179,32.86,122.74,122.63,32.86]
[1725657341384,35.4466,122.74,122.63,32.86]
[1725657341579,4.0769,122.71,122.63,32.86]
[1725657341786,35.4466,122.74,122.63,32.86]
[1725657342179,2.5866,122.74,122.69,4.0772]
[1725657342486,2.5866,122.74,122.65,32.86]
[1725657342685,2.5866,122.74,122.67,4.0779]
[1725657342980,35.4466,122.74,122.63,32.86]
[1725657343181,35.4466,122.74,122.63,38.1193]
[1725657343381,4.0766,122.72,122.67,4.078]
[1725657343586,2.5866,122.74,122.65,32.86]
[1725657343880,4.15184184,122.76,122.71,4.0766]
[1725657344088,35.4543,122.78,122.67,32.86]
[1725657344286,4.0757,122.75,122.7,4.0769]
[1725657344487,4.0757,122.75,122.67,32.86]
[1725657344785,4.0759,122.74,122.7,4.077]
[1725657345386,4.0772,122.71,122.66,4.0783]
[1725657345588,32.86,122.74,122.63,42.29770051]
[1725657345890,32.86,122.72,122.63,5.2593]
[1725657346093,32.86,122.72,122.63,9.26847671]
[1725657346287,32.86,122.72,122.63,5.2593]
[1725657346481,32.86,122.74,122.63,38.1193]
[1725657346892,4.0771,122.71,122.66,4.0783]
[1725657347085,37.02168201,122.76,122.65,32.86]
[1725657347282,37.02168201,122.76,122.66,2.6035]
[1725657347995,4.0771,122.71,122.67,4.0781]
[1725657348597,4.0773,122.7,122.66,4.0783]
[1725657349092,4.0775,122.69,122.66,4.0783]
[1725657349296,3.98821518,122.71,122.63,7.8628]
[1725657349501,32.86,122.74,122.63,40.7228]
[1725657350091,32.86,122.76,122.66,32.86]
[1725657350287,32.86,122.76,122.67,4.078]
[1725657350485,32.86,122.76,122.64,32.86]
[1725657350689,32.86,122.74,122.64,32.86]
[1725657350886,32.86,122.74,122.65,4.02940135]
[1725657351192,4.10241105,122.76,122.66,32.86]
[1725657351381,32.86,122.77,122.69,4.0775]
[1725657351988,36.93957003,122.77,122.69,4.0775]
[1725657352188,4.0764,122.73,122.69,4.0775]
[1725657352583,36.93957003,122.77,122.69,4.0775]
[1725657352786,32.86,122.74,122.64,32.86]
[1725657352982,4.07957003,122.77,122.68,32.86]
[1725657353193,4.0749,122.77,122.74,4.0756]
[1725657353494,5.4694,122.79,122.7,32.86]
[1725657353791,2.5984,122.82,122.74,32.86]
[1725657354392,109.04648231,122.83,122.74,32.86]
[1725657354587,32.86,122.87,122.76,32.86]
[1725657354790,4.0728,122.84,122.8,4.0737]
[1725657354987,35.4584,122.89,122.78,32.86]
[1725657355198,39.58012073,122.89,122.78,32.86]
[1725657355389,4.0731,122.83,122.79,4.074]
[1725657355696,4.0731,122.83,122.76,4.16983738]
[1725657355697,32.86,122.87,122.76,32.86]
[1725657356291,6.72012073,122.89,122.78,32.86]
[1725657356493,4.0725,122.85,122.8,4.0736]
[1725657357000,6.72012073,122.89,122.78,32.86]
[1725657357500,6.72012073,122.89,122.81,4.0733]
[1725657357701,6.72012073,122.89,122.79,8.1349]
[1725657357994,32.86,122.88,122.79,5.5152]
[1725657358195,32.86,122.88,122.78,32.86]
[1725657358588,32.86,122.88,122.78,36.9062445]
[1725657358994,4.0724,122.85,122.78,36.9062445]
[1725657359194,32.86,122.88,122.78,36.9062445]
[1725657359900,6.72012073,122.89,122.78,36.9062445]
[1725657360103,6.72012073,122.89,122.81,4.0734]
[1725657360104,4.0721,122.86,122.81,4.0734]
[1725657360401,6.72012073,122.89,122.81,4.0734]
[1725657360893,6.72012073,122.89,122.8,32.86]
[1725657361099,32.86,122.93,122.82,32.86]
[1725657361300,4.05340363,122.92,122.86,4.0716]
[1725657361601,32.86,122.95,122.84,32.86]
[1725657362097,4.07,122.92,122.84,32.86]
[1725657362300,32.86,122.94,122.83,40.9844]
[1725657362606,4.0689,122.95,122.91,4.0701]
[1725657362999,2.6303,122.98,122.89,4.0707]
[1725657363193,2.6303,122.98,122.87,32.86]
[1725657363400,34.11404312,122.97,122.85,32.86]
[1725657363697,32.86,122.95,122.83,40.9844]
[1725657363904,32.86,122.93,122.83,8.1244]
[1725657364106,4.0708,122.9,122.83,8.1244]
[1725657364400,32.86,122.9,122.83,8.1244]
[1725657364611,32.86,122.9,122.83,5.3865]
[1725657364803,32.86,122.9,122.77,32.86]
[1725657364804,32.86,122.88,122.77,32.86]
[1725657365001,32.86,122.86,122.77,3.99336211]
[1725657365201,32.86,122.86,122.76,13.80978821]
[1725657365407,32.86,122.86,122.77,4.11264594]
[1725657365608,4.0739,122.8,122.77,4.11264594]
[1725657365916,32.86,122.86,122.77,4.11264594]
[1725657366102,4.0734,122.82,122.77,8.18724594]
[1725657366410,2.5925,122.87,122.78,4.00477033]
[1725657366813,4.0732,122.83,122.78,8.07907033]
[1725657367013,2.5925,122.87,122.78,8.07907033]
[1725657367210,2.5925,122.87,122.78,4.00477033]
[1725657367406,4.0731,122.83,122.79,4.074]
[1725657369807,2.5925,122.87,122.78,4.00477033]
[1725657370014,2.5925,122.87,122.76,7.7316]
[1725657370015,32.86,122.86,122.76,7.7316]
[1725657370219,32.86,122.84,122.76,11.7507896]
[1725657370517,2.6661,122.86,122.7,32.86]
[1725657370518,32.86,122.82,122.7,32.86]
[1725657370717,36.90811049,122.82,122.7,32.86]
[1725657371015,32.86,122.8,122.7,36.937]
[1725657371205,32.86,122.8,122.68,40.7911]
[1725657371407,5.4384,122.79,122.68,38.0072]
[1725657371610,9.56553378,122.79,122.69,8.1146124]
[1725657371809,9.56553378,122.79,122.69,4.0371124]
[1725657372007,4.0756,122.75,122.7,2.5547]
[1725657372320,2.5743,122.81,122.72,32.86]
[1725657372516,4.0731,122.83,122.75,32.86]
[1725657372813,2.6594,122.86,122.77,32.86]
[1725657373018,2.6594,122.86,122.77,36.84430065]
[1725657373219,38.2133,122.88,122.77,39.39900065]
[1725657373409,35.4343,122.88,122.77,39.39900065]
[1725657373720,5.4384,122.89,122.79,32.86]
[1725657373916,35.4777,122.92,122.81,32.86]
[1725657374313,4.08743428,122.91,122.81,32.86]
[1725657374513,35.4777,122.92,122.81,32.86]
[1725657374913,43.57245729,122.92,122.86,4.0716]
[1725657375217,39.50235729,122.92,122.81,32.86]
[1725657375520,32.86,122.9,122.79,32.86]
[1725657375827,32.86,122.88,122.77,39.39900065]
[1725657376312,6.64235729,122.92,122.81,32.86]
[1725657377017,2.6177,122.92,122.84,32.86]
[1725657377208,6.60007117,122.92,122.84,32.86]
[1725657377408,4.0706,122.9,122.85,4.072]
[1725657378617,4.0703,122.91,122.86,4.0718]
[1725657378817,5.2946,122.96,122.8,32.86]
[1725657379021,4.0694,122.94,122.86,32.86]
[1725657379320,5.2946,122.96,122.87,7.8655]
[1725657380019,4.0694,122.94,122.87,7.8655]
[1725657380214,32.86,122.95,122.87,7.8655]
[1725657380723,5.2946,122.96,122.87,7.8655]
[1725657381115,4.0693,122.94,122.87,7.8655]
[1725657382216,5.2946,122.96,122.87,7.8655]
[1725657382915,4.0691,122.95,122.87,7.8655]
[1725657383220,2.6643,122.98,122.88,32.86]
[1725657383417,4.0688,122.96,122.91,4.07]
[1725657383818,32.86,122.97,122.88,32.86]
[1725657384216,2.6643,122.98,122.88,32.86]
[1725657384611,4.0683,122.97,122.92,4.0696]
[1725657384816,5.0,123.0,122.9,32.86]
[1725657385114,5.0,123.0,122.92,32.86]
[1725657385310,5.0,123.0,122.93,4.03251159]
[1725657385515,4.0696,122.93,122.87,7.8655]
[1725657385715,5.0,123.0,122.88,32.86]
[1725657385716,32.86,122.99,122.88,32.86]
[1725657386221,32.86,122.99,122.89,4.0708]
[1725657386417,32.86,122.99,122.87,12.01927177]
[1725657386609,4.0691,122.95,122.9,4.0704]
[1725657387414,32.86,122.99,122.9,4.0704]
[1725657387415,4.0692,122.94,122.9,4.0704]
[1725657387819,32.86,122.99,122.9,4.0704]
[1725657388014,4.0689,122.96,122.92,4.0699]
[1725657388218,32.86,122.99,122.89,32.86]
[1725657388524,32.86,122.99,122.87,12.01927177]
[1725657388525,32.86,122.97,122.87,7.8655]
[1725657388718,5.3972,122.96,122.87,7.8655]
[1725657389017,4.07,122.92,122.88,4.0712]
[1725657391416,4.03048844,122.92,122.67,32.86]
[1725657391624,32.86,122.91,122.81,7.832]
[1725657391918,32.86,122.88,122.81,7.832]
[1725657392117,4.0722,122.86,122.82,4.0732]
[1725657392925,4.14574297,122.87,122.81,7.832]
[1725657393120,32.86,122.93,122.73,32.86]
[1725657393121,32.86,122.86,122.73,32.86]
[1725657393316,32.86,122.84,122.76,7.849]
[1725657393525,2.7834,122.86,122.76,7.849]
[1725657393526,32.86,122.82,122.76,7.849]
[1725657393719,32.86,122.82,122.76,5.1707]
[1725657393910,4.0741,122.8,122.75,4.0754]
[1725657394116,32.86,122.82,122.72,2.6783]
[1725657394117,32.86,122.82,122.72,7.849]
[1725657394421,2.7045,122.85,122.73,32.86]
[1725657394422,35.5645,122.85,122.73,32.86]
[1725657394917,4.0736,122.81,122.76,4.075]
[1725657395313,4.0736,122.81,122.73,32.86]
[1725657395620,35.5645,122.85,122.73,32.86]
[1725657395825,4.073,122.83,122.78,4.0743]
[1725657396118,35.5645,122.85,122.72,11.89538522]
[1725657396321,32.86,122.82,122.72,7.849]
[1725657396715,4.0748,122.78,122.73,4.0759]
[1725657396927,8.06025674,122.78,122.73,4.0759]
[1725657397223,8.13034145,122.78,122.72,7.849]
[1725657397424,4.0748,122.78,122.72,7.849]
[1725657397621,4.0749,122.77,122.72,7.849]
[1725657397815,4.0749,122.77,122.72,11.9253]
[1725657398016,32.86,122.78,122.72,5.1707]
[1725657398213,4.0754,122.76,122.68,3.98953144]
[1725657398425,4.0754,122.76,122.71,4.0766]
[1725657398623,32.86,122.78,122.69,5.4024]
[1725657398828,38.4216,122.78,122.69,5.4024]
[1725657399022,4.0757,122.75,122.7,4.0771]
[1725657399325,38.4216,122.78,122.69,5.4024]
[1725657399624,5.5616,122.78,122.69,5.4024]
[1725657400025,4.0753,122.76,122.71,4.0766]
[1725657400227,5.5616,122.78,122.69,5.4024]
[1725657400818,4.0752,122.76,122.69,5.4024]
[1725657401223,6.7993,122.79,122.73,4.0761]
[1725657401431,4.0744,122.79,122.71,32.86]
[1725657401622,36.95099128,122.8,122.72,2.5827]
[1725657402027,2.6662,122.79,122.69,5.4024]
[1725657402327,32.86,122.77,122.69,5.4024]
[1725657402724,8.076,122.79,122.69,38.2624]
[1725657403322,2.6662,122.79,122.69,38.2624]
[1725657403821,2.6662,122.79,122.69,5.4024]
[1725657404027,2.6662,122.79,122.71,32.86]
[1725657404221,4.09099128,122.8,122.71,32.86]
[1725657404421,4.0741,122.8,122.74,4.0756]
[1725657404621,4.15387252,122.79,122.74,4.0756]
[1725657405025,4.15387252,122.79,122.75,4.0755]
[1725657405228,4.0736,122.81,122.75,4.0755]
[1725657405429,4.08187698,122.8,122.75,4.0755]
[1725657405626,32.86,122.82,122.75,4.0755]
[1725657405832,4.0737,122.81,122.75,4.0755]
[1725657406136,4.07168859,122.8,122.75,4.0755]
[1725657406432,4.0733,122.82,122.74,3.98936639]
[1725657406635,32.86,122.84,122.75,2.6954]
[1725657406926,32.86,122.84,122.76,5.4274]
[1725657407131,4.0731,122.83,122.77,4.0748]
[1725657407738,4.0732,122.82,122.77,4.0748]
[1725657408026,32.86,122.84,122.78,4.0745]
[1725657408229,32.86,122.84,122.76,5.4274]
[1725657408430,5.3058,122.85,122.76,5.4274]
[1725657408733,32.86,122.87,122.76,5.4274]
[1725657408923,2.7974,122.86,122.76,5.4274]
[1725657409120,2.7974,122.86,122.79,4.0739]
[1725657409327,4.0723,122.85,122.79,4.0739]
[1725657409931,2.7111,122.87,122.79,32.86]
[1725657410125,32.86,122.89,122.79,32.86]
[1725657410429,8.11462759,122.88,122.82,4.073]
[1725657410635,4.0715,122.88,122.82,4.073]
[1725657411322,8.24235422,122.88,122.82,4.073]
[1725657411527,4.0716,122.87,122.82,4.073]
[1725657411726,4.17085422,122.88,122.79,32.86]
[1725657411927,8.2961,122.92,122.76,5.4274]
[1725657411928,32.86,122.87,122.76,5.4274]